bitfinex/quotes_ETHUSD_20220219
["timestamp","ask_amount","ask_price","bid_price","bid_amount"]
[1645254605466,0.94868616,2821.2,2821.0,0.00244835]
[1645254605663,1.83524616,2821.2,2821.0,0.00244835]
[1645254605860,0.94868616,2821.2,2821.0,0.00244835]
[1645254606262,0.94868616,2821.2,2820.9,0.00427649]
[1645254606660,0.94868616,2821.2,2821.0,0.00244835]
[1645254607663,0.94868616,2821.2,2820.8,0.89656373]
[1645254607864,1.83521376,2821.2,2821.0,0.00244835]
[1645254608271,0.94868616,2821.2,2821.0,0.00244835]
[1645254608667,0.94868616,2821.2,2820.8,0.89656373]
[1645254608916,0.94868616,2821.2,2821.0,0.00244835]
[1645254609918,0.94868616,2821.2,2820.7,0.00427649]
[1645254610118,0.94868616,2821.2,2821.0,0.00244835]
[1645254611119,4.54868616,2821.2,2820.7,0.00427649]
[1645254611318,4.54868616,2821.2,2820.7,0.90084022]
[1645254611518,4.54868616,2821.2,2821.0,0.00244835]
[1645254612418,4.54868616,2821.2,2820.7,0.00427649]
[1645254612670,4.54868616,2821.2,2821.0,0.00244835]
[1645254612863,3.5,2821.1,2821.0,0.00244835]
[1645254613466,3.5,2821.1,2820.5,0.00427649]
[1645254613663,5.43519126,2821.2,2820.5,0.00427649]
[1645254613964,4.54868616,2821.2,2820.9,0.00244837]
[1645254614162,4.52868616,2821.2,2820.9,0.00244837]
[1645254614363,8.02868616,2821.2,2820.9,0.00244837]
[1645254614763,8.02868616,2821.2,2820.7,0.00427649]
[1645254614968,4.52868616,2821.2,2820.9,0.00244837]
[1645254615369,11.00467404,2821.1,2820.9,0.00244837]
[1645254615567,1.50467404,2821.0,2820.9,0.00244837]
[1645254615765,12.31467404,2821.0,2820.9,0.00244837]
[1645254615968,12.31467404,2821.0,2820.3,0.00427649]
[1645254616164,12.31467404,2821.0,2820.8,0.00244842]
[1645254616165,1.50467404,2821.0,2820.8,0.00244842]
[1645254616413,1.88672,2821.1,2820.8,0.00244842]
[1645254616613,3.6598674,2821.1,2820.8,0.00244842]
[1645254617216,12.31469231,2821.0,2820.3,0.00427649]
[1645254617415,1.50469231,2821.0,2820.8,0.00244842]
[1645254617816,7.1599,2821.1,2820.8,0.00244842]
[1645254618216,1.0,2821.1,2820.8,0.00244842]
[1645254618521,12.19308616,2821.2,2820.8,0.00244842]
[1645254618716,1.50467506,2821.1,2820.8,0.00244842]
[1645254619118,12.19308616,2821.2,2820.8,0.00244842]
[1645254619318,1.50472095,2821.1,2820.8,0.00244842]
[1645254619517,1.50472095,2821.1,2820.3,0.00427649]
[1645254619717,0.85395992,2820.7,2820.3,0.00427649]
[1645254619917,0.85395992,2820.7,2820.4,0.00979505]
[1645254620565,4.35395992,2820.7,2820.4,0.00979505]
[1645254620764,4.35395992,2820.7,2820.3,0.00427649]
[1645254620765,0.85395992,2820.7,2820.3,0.00427649]
[1645254620967,3.5,2820.6,2820.4,0.00244862]
[1645254621172,10.81,2820.5,2820.4,0.00244862]
[1645254621965,10.81,2820.5,2819.8,0.00427649]
[1645254622165,0.91201656,2820.2,2819.9,0.00979613]
[1645254622667,0.88689,2820.1,2819.9,0.00979613]
[1645254623274,0.88689,2820.1,2819.8,0.00427649]
[1645254623472,0.88689,2820.1,2819.9,0.00244889]
[1645254624317,0.88689,2820.1,2819.8,0.00427649]
[1645254624523,4.38689,2820.1,2819.8,0.00427649]
[1645254624718,5.38689,2820.1,2819.9,0.00244889]
[1645254624916,3.5,2820.0,2819.9,0.00244889]
[1645254625517,1.88689,2820.1,2819.6,0.00427649]
[1645254625518,5.38689,2820.1,2819.6,0.00427649]
[1645254625723,0.8869147,2820.0,2819.6,0.00427649]
[1645254626022,4.38689,2820.1,2819.6,0.00427649]
[1645254626023,1.06412,2820.4,2819.8,0.00244891]
[1645254626230,0.88682,2820.4,2819.8,0.00244891]
[1645254626617,4.38682,2820.4,2819.8,0.00244891]
[1645254626817,0.88682,2820.4,2819.7,0.00427649]
[1645254627218,0.88682,2820.4,2820.0,0.00244884]
[1645254627420,0.886766,2820.3,2820.0,0.00244884]
[1645254627665,0.886766,2820.3,2820.0,0.00672533]
[1645254627874,0.1771,2820.5,2820.0,0.00672533]
[1645254628070,0.1771,2820.5,2820.0,0.00427649]
[1645254628071,3.5,2820.5,2820.0,0.00427649]
[1645254628270,3.5,2820.5,2820.0,0.0067253]
[1645254628469,0.8867043,2820.6,2820.0,0.00244881]
[1645254628873,10.81,2820.4,2820.0,0.00244881]
[1645254629071,11.69684,2820.4,2819.6,0.01407321]
[1645254629269,1.7782981,2820.4,2819.7,1.17299698]
[1645254629468,1.7782981,2820.4,2820.1,0.00244879]
[1645254629469,0.88684,2820.4,2820.1,0.00244879]
[1645254630069,11.69684,2820.4,2820.1,0.00244879]
[1645254630270,0.8868123,2820.3,2820.1,0.00244879]
[1645254630470,1.7736723,2820.3,2819.8,0.00427649]
[1645254630668,1.7736723,2820.3,2820.1,0.00244876]
[1645254631272,3.5473723,2820.3,2820.1,0.00244876]
[1645254631525,3.5473723,2820.3,2819.8,0.00427649]
[1645254631526,1.7736723,2820.3,2819.8,0.00427649]
[1645254631720,4.3868123,2820.3,2819.8,0.00427649]
[1645254631924,4.3868123,2820.3,2820.1,0.00244879]
[1645254632121,0.8868123,2820.3,2820.1,0.00244879]
[1645254632820,0.8868123,2820.3,2819.6,0.84659023]
[1645254633022,0.8868123,2820.3,2820.1,0.00244879]
[1645254633223,13.4705223,2820.3,2820.1,0.00244879]
[1645254633424,16.9705223,2820.3,2820.1,0.00244879]
[1645254633622,6.1605223,2820.3,2820.1,0.00244879]
[1645254634026,6.1605223,2820.3,2819.7,0.00427649]
[1645254634027,9.7605223,2820.3,2819.7,0.00427649]
[1645254634224,9.7605223,2820.3,2820.1,0.00244879]
[1645254634424,6.2605223,2820.3,2820.1,0.00244879]
[1645254634625,4.4868123,2820.3,2820.1,0.00244879]
[1645254635270,4.4868123,2820.3,2819.7,0.00427649]
[1645254635467,4.4868123,2820.3,2820.1,0.00244879]
[1645254635666,3.6,2820.3,2820.1,0.00244879]
[1645254636470,7.98685,2820.3,2819.7,0.00427649]
[1645254636673,7.98685,2820.3,2820.1,0.00244879]
[1645254636871,4.48685,2820.3,2820.1,0.00244879]
[1645254637271,4.4867803,2820.3,2820.1,0.00244879]
[1645254637671,4.4867803,2820.3,2819.8,0.00427649]
[1645254637870,4.4867803,2820.3,2820.1,0.00244879]
[1645254638772,4.4867803,2820.3,2819.8,0.00427649]
[1645254639016,4.4867803,2820.3,2820.1,0.00244879]
[1645254639221,3.6,2820.3,2820.1,0.00244879]
[1645254640018,3.59891555,2820.3,2819.8,0.00427649]
[1645254640217,4.48569565,2820.3,2820.1,0.00244879]
[1645254641222,4.48569565,2820.3,2819.7,0.00427649]
[1645254641421,4.48569565,2820.3,2820.1,0.00244879]
[1645254642031,5.37253565,2820.3,2820.1,0.00244879]
[1645254642319,5.37253565,2820.3,2819.8,0.00427649]
[1645254642763,5.37253565,2820.3,2820.1,0.00244879]
[1645254643063,4.48569565,2820.3,2820.1,0.00244879]
[1645254643565,4.48569565,2820.3,2819.8,0.00427649]
[1645254643763,4.48569565,2820.3,2820.1,0.00244879]
[1645254644865,4.48569565,2820.3,2819.8,0.00427649]
[1645254645066,4.48569565,2820.3,2820.1,0.00244879]
[1645254645273,5.37254565,2820.3,2820.1,0.00244879]
[1645254646070,6.25941565,2820.3,2819.8,0.00427649]
[1645254646267,6.25941565,2820.3,2820.1,0.00244879]
[1645254646514,0.85260788,2820.2,2820.1,0.00244879]
[1645254647119,0.85260788,2820.2,2819.7,0.00427649]
[1645254647314,2.62634328,2820.2,2819.7,0.00427649]
[1645254647516,2.62634328,2820.2,2820.0,0.00244881]
[1645254647814,1.73946328,2820.2,2820.0,0.00244881]
[1645254648216,0.8868554,2820.2,2820.0,0.00244881]
[1645254648419,0.8868554,2820.2,2819.7,0.00427649]
[1645254648717,0.8868554,2820.2,2820.0,0.00244884]
[1645254649521,0.8868554,2820.2,2819.7,0.00427649]
[1645254649919,0.8868554,2820.2,2820.0,0.00244884]
[1645254650567,11.6968554,2820.2,2820.0,0.00244884]
[1645254650764,11.6968554,2820.2,2819.5,0.01407331]
[1645254650765,3.5477954,2820.2,2819.5,0.00427649]
[1645254650963,0.88698,2820.0,2819.3,1.20084022]
[1645254651160,0.8869669,2819.9,2819.5,0.00979682]
[1645254651762,1.77139126,2819.9,2819.5,0.00979682]
[1645254651963,1.77139126,2819.9,2819.3,1.20084022]
[1645254652369,12.58139126,2819.9,2819.6,0.00244903]
[1645254652566,17.85537126,2819.9,2819.6,0.00244903]
[1645254653269,10.81,2819.8,2819.3,0.00427649]
[1645254653470,15.1970872,2819.7,2819.6,0.00244901]
[1645254653933,4.3870872,2819.7,2819.6,0.00244901]
[1645254654319,4.3870872,2819.7,2819.3,0.00427649]
[1645254654518,16.0841672,2819.7,2819.2,0.00427649]
[1645254654924,16.0841672,2819.7,2819.2,0.90084022]
[1645254655120,16.0841672,2819.7,2819.2,0.89656373]
[1645254655320,16.0841672,2819.7,2819.2,0.90084022]
[1645254656323,16.1841672,2819.7,2819.2,0.90084022]
[1645254656524,5.3741672,2819.7,2819.2,0.90084022]
[1645254656728,5.3741672,2819.7,2819.2,0.00427649]
[1645254656729,1.11078532,2819.4,2819.2,0.00427649]
[1645254656926,2.88508162,2819.4,2819.0,0.00427649]
[1645254657124,2.88508162,2819.4,2819.3,0.00244636]
[1645254657766,1.99792532,2819.4,2819.3,0.00244636]
[1645254658067,1.99792532,2819.4,2818.8,0.00427649]
[1645254658068,1.11078532,2819.4,2818.8,0.90084022]
[1645254658267,1.11078532,2819.4,2819.2,0.00244641]
[1645254659266,1.11078532,2819.4,2818.8,0.90084022]
[1645254659467,1.11078532,2819.4,2819.2,0.00244643]
[1645254659668,0.8871521,2819.6,2819.2,0.00244643]
[1645254660071,4.3871521,2819.6,2819.2,0.00244643]
[1645254660470,4.3871521,2819.6,2818.8,0.90084022]
[1645254660471,5.2742221,2819.6,2818.8,0.00427649]
[1645254660669,5.2742221,2819.6,2819.3,0.00244638]
[1645254660868,1.15657722,2819.5,2819.3,0.00244638]
[1645254661068,3.5,2819.4,2819.3,0.00244638]
[1645254661522,3.49859188,2819.4,2818.8,0.00427649]
[1645254661920,3.49859188,2819.4,2819.2,0.00244641]
[1645254662121,1.15657722,2819.5,2819.2,0.00244641]
[1645254662318,2.15657722,2819.5,2819.2,0.00244641]
[1645254662725,2.15657722,2819.5,2818.8,0.90084022]
[1645254662726,1.15657722,2819.5,2818.8,0.90084022]
[1645254663120,1.15657722,2819.5,2819.2,0.00244641]
[1645254663722,0.8871521,2819.6,2819.2,0.00244641]
[1645254664021,11.3885,2819.7,2818.8,0.90084022]
[1645254664022,8.7754683,2819.7,2818.8,0.90084022]
[1645254664223,8.7754683,2819.7,2819.2,0.00244641]
[1645254665270,0.99510163,2819.6,2818.8,0.00427649]
[1645254665461,0.99510163,2819.6,2819.3,0.00244636]
[1645254666462,0.99510163,2819.6,2818.8,0.00427649]
[1645254666660,0.99510163,2819.6,2819.3,0.00244636]
[1645254667662,0.99510163,2819.6,2818.8,0.00427649]
[1645254667867,0.99510163,2819.6,2819.3,0.00244636]
[1645254668916,10.81,2819.5,2818.8,0.00427649]
[1645254669125,10.81,2819.3,2818.9,0.00978689]
[1645254669316,10.81,2819.2,2818.9,0.00978689]
[1645254669913,1.00492714,2819.0,2818.9,0.00978689]
[1645254670116,1.00492714,2819.0,2818.4,0.00427649]
[1645254670117,0.88727,2818.9,2818.4,0.00427649]
[1645254671319,1.89220854,2819.0,2818.4,0.00427649]
[1645254671515,1.77438,2819.2,2818.4,0.00427649]
[1645254672015,5.27438,2819.2,2818.4,0.00427649]
[1645254672218,1.77438,2819.2,2818.4,0.00427649]
[1645254672414,0.8871565,2819.1,2818.4,0.00427649]
[1645254672669,1.17034265,2819.0,2818.7,0.00243475]
[1645254673076,7.33217535,2819.0,2818.7,0.00243475]
[1645254673276,6.44491535,2819.0,2818.7,0.00243475]
[1645254673470,2.94491535,2819.0,2818.7,0.00243475]
[1645254673670,3.83219185,2819.0,2818.4,0.00427649]
[1645254673871,3.83219185,2819.0,2818.7,0.00243473]
[1645254674071,11.69729,2818.9,2818.7,0.00243473]
[1645254674374,14.31,2818.8,2818.7,0.00243473]
[1645254674771,10.81,2818.8,2818.7,0.00243473]
[1645254674971,10.81,2818.8,2818.4,0.00427649]
[1645254675172,0.92349648,2818.5,2818.4,0.00427649]
[1645254675371,1.81092648,2818.5,2818.2,0.50974056]
[1645254675772,0.92349648,2818.5,2818.2,0.50974056]
[1645254675970,0.92349648,2818.5,2818.2,0.5]
[1645254677217,13.50831648,2818.5,2818.2,0.5]
[1645254677418,2.69831648,2818.5,2818.2,0.50243199]
[1645254678021,13.50831648,2818.5,2818.2,0.50243199]
[1645254678225,10.81,2818.3,2818.2,0.00243199]
[1645254678418,10.81,2818.3,2818.1,0.00427649]
[1645254678621,0.887598,2818.1,2817.4,0.00427649]
[1645254678823,0.8876,2817.9,2817.8,0.00972941]
[1645254679521,0.887598,2818.1,2817.8,0.00972941]
[1645254679522,0.87142123,2818.1,2817.8,0.00972941]
[1645254679723,2.17569801,2818.2,2817.9,0.5]
[1645254679922,2.17569801,2818.2,2817.9,0.50427649]
[1645254680166,0.88759,2818.1,2817.9,0.50427649]
[1645254680371,0.88759,2818.1,2817.9,0.5]
[1645254680572,1.775188,2818.1,2817.9,0.5]
[1645254680971,1.13898157,2818.0,2817.9,0.5]
[1645254681770,5.375188,2818.1,2817.9,0.5]
[1645254682468,5.375188,2818.1,2817.9,0.50242918]
[1645254682673,3.5,2818.0,2817.9,0.50242918]
[1645254682873,14.31,2818.0,2817.9,0.50242918]
[1645254683080,14.31,2818.0,2817.9,2.918e-05]
[1645254683280,14.31,2818.0,2817.5,0.00427649]
[1645254683281,12.0,2817.9,2817.5,0.00427649]
[1645254683477,15.1976674,2817.8,2817.5,0.00427649]
[1645254683670,4.3876674,2817.8,2817.5,0.00427649]
[1645254683921,1.94278365,2817.7,2817.6,0.5]
[1645254684313,5.44278365,2817.7,2817.6,0.5]
[1645254684514,1.94278365,2817.7,2817.6,0.5]
[1645254684716,2.83046365,2817.7,2817.6,0.5]
[1645254685920,16.25278365,2817.7,2817.6,0.5]
[1645254686123,16.25278365,2817.7,2817.6,0.0001]
[1645254686124,15.19767,2817.7,2817.6,0.0001]
[1645254686519,15.19767,2817.7,2816.8,0.00427649]
[1645254686719,16.0853548,2817.7,2816.8,0.00427649]
[1645254686923,16.0853548,2817.7,2816.9,0.04320019]
[1645254686924,5.2753548,2817.7,2816.9,0.04320019]
[1645254687121,13.4730448,2817.7,2817.1,0.00242656]
[1645254687321,1.17829714,2817.3,2817.1,0.00242656]
[1645254687519,11.6977,2817.6,2817.2,0.04149492]
[1645254687520,17.1406,2817.6,2817.2,0.04149492]
[1645254687766,6.3306,2817.6,2817.2,0.04149492]
[1645254687965,4.4429,2817.6,2817.2,0.04149492]
[1645254688363,4.4429,2817.6,2817.3,0.00242649]
[1645254688767,4.4429,2817.6,2817.4,0.04035807]
[1645254688967,10.81,2818.0,2817.4,0.04035807]
[1645254688968,1.065,2818.0,2817.4,0.04035807]
[1645254689167,14.5874,2818.1,2817.4,0.04035807]
[1645254689365,3.7774,2818.1,2817.4,0.04035807]
[1645254689565,3.7774,2818.1,2817.6,0.00242634]
[1645254689566,3.5,2818.0,2817.6,0.00242634]
[1645254689764,3.6,2818.1,2817.6,0.00242634]
[1645254690165,7.98755,2818.1,2817.6,0.00242634]
[1645254690568,7.98755,2818.1,2817.3,0.04092649]
[1645254690769,7.98755,2818.1,2817.7,0.00242627]
[1645254690967,8.87511,2818.1,2817.7,0.00242627]
[1645254691166,9.76268,2818.1,2817.7,0.00242627]
[1645254691418,0.88762,2817.9,2817.7,0.00242627]
[1645254691614,15.19762,2817.9,2817.3,0.04092649]
[1645254692015,4.38762,2817.9,2817.8,0.00242624]
[1645254692213,0.00305627,2817.7,2817.3,0.05063292]
[1645254692615,0.00305627,2817.7,2817.4,0.04035807]
[1645254693414,0.00305627,2817.7,2817.3,0.04092649]
[1645254694416,3.50305627,2817.7,2817.3,0.04092649]
[1645254694616,5.27841627,2817.7,2817.3,0.04092649]
[1645254695016,16.08841627,2817.7,2817.3,0.04092649]
[1645254695270,0.00305627,2817.7,2817.3,0.04092649]
[1645254695663,0.00305627,2817.7,2817.4,0.00242346]
[1645254696064,3.50305627,2817.7,2817.4,0.00242346]
[1645254696465,3.50305627,2817.7,2817.3,0.04092649]
[1645254696666,0.00305627,2817.7,2817.3,0.04092649]
[1645254696865,3.50305627,2817.7,2817.4,0.00242343]
[1645254697068,14.31305627,2817.7,2817.4,0.00242343]
[1645254697665,14.31305627,2817.7,2817.1,0.04206334]
[1645254697865,10.81305627,2817.7,2817.1,0.04206334]
[1645254698069,0.89074627,2817.7,2817.4,0.00242343]
[1645254698273,0.00305627,2817.7,2817.4,0.00242343]
[1645254698917,0.00305627,2817.7,2817.1,0.04206334]
[1645254699118,0.00305627,2817.7,2817.1,0.95256087]
[1645254699329,0.00305627,2817.7,2817.4,0.00242343]
[1645254699716,0.00305627,2817.7,2817.4,0.00669992]
[1645254700119,0.00305627,2817.7,2817.4,0.00427649]
[1645254700318,0.00305627,2817.7,2817.4,0.00669992]
[1645254701023,3.6,2818.1,2817.6,1.04397474]
[1645254701218,3.6,2818.1,2817.6,1.34825123]
[1645254701520,16.1852667,2818.1,2817.6,0.00427649]
[1645254701717,16.1852667,2818.1,2817.2,0.04149492]
[1645254701718,16.1852667,2818.1,2817.7,0.00242333]
[1645254701921,1.7752099,2818.0,2817.7,0.00242333]
[1645254702316,2.6628499,2818.0,2817.7,0.00242333]
[1645254702519,2.6628499,2818.0,2817.4,0.93814766]
[1645254702766,3.5504899,2818.0,2817.7,0.00242333]
[1645254703363,2.6628499,2818.0,2817.7,0.00242333]
[1645254703565,6.1628499,2818.0,2817.7,0.00242333]
[1645254703766,3.5,2818.0,2817.5,0.00427649]
[1645254703966,5.89760205,2818.1,2817.7,0.00242333]
[1645254704965,5.89760205,2818.1,2817.5,0.00427649]
[1645254705168,5.89760205,2818.1,2817.7,0.00242335]
[1645254705371,6.78517205,2818.1,2817.7,0.00242335]
[1645254706067,6.78517205,2818.1,2817.5,0.00427649]
[1645254706068,3.6,2818.1,2817.5,0.00427649]
[1645254706520,3.6,2818.1,2817.6,0.52]
[1645254706723,3.6,2818.1,2817.6,0.82427649]
[1645254707021,3.6,2818.1,2817.6,0.52427649]
[1645254707222,3.6,2818.1,2817.6,0.82427649]
[1645254707418,6.0,2818.0,2817.0,0.3]
[1645254707618,6.0,2818.0,2817.1,1.52]
[1645254707817,6.0,2818.0,2817.7,0.00242631]
[1645254708018,6.0,2818.0,2817.7,0.52242631]
[1645254708517,6.0,2818.0,2817.7,0.52]
[1645254708918,6.0,2818.0,2817.7,0.52242631]
[1645254709522,3.6,2818.1,2817.8,3.5]
[1645254709728,3.6,2818.1,2817.9,0.52]
[1645254709926,3.6,2818.1,2817.9,0.82]
[1645254710376,3.6,2818.1,2817.9,0.9974]
[1645254710574,3.6,2818.1,2818.0,1.18929989]
[1645254710775,3.6,2818.1,2818.0,2.00929989]
[1645254712075,3.6,2818.1,2818.0,5.50929989]
[1645254716418,3.6,2818.1,2818.0,2.00929989]
[1645254718673,3.6,2818.1,2818.0,1.70929989]
[1645254719474,3.6,2818.1,2818.0,5.20929989]
[1645254719674,3.6,2818.1,2818.0,1.70929989]
[1645254719873,3.6,2818.1,2818.0,2.00929989]
[1645254720079,3.6,2818.1,2818.0,2.30929989]
[1645254722626,3.6,2818.1,2818.0,2.00929989]
[1645254723715,3.6,2818.1,2818.0,2.30929989]
[1645254724517,3.6,2818.1,2818.0,2.00929989]
[1645254725178,3.6,2818.1,2818.0,0.52]
[1645254725373,3.6,2818.1,2817.6,0.6]
[1645254725576,3.6,2818.1,2817.4,4.6]
[1645254725770,3.6,2818.1,2817.4,1.1]
[1645254726272,3.6,2818.1,2817.8,1.02129429]
[1645254726473,3.6,2818.1,2817.4,4.6]
[1645254726670,3.6,2818.1,2817.4,1.1]
[1645254727470,3.6,2818.1,2817.7,1.05824447]
[1645254728072,3.6,2818.1,2817.7,1.06067676]
[1645254728670,3.5987524,2818.1,2817.7,1.06067676]
[1645254728916,3.5987524,2818.1,2817.7,1.05824447]
[1645254729318,3.5987524,2818.1,2817.7,1.06067676]
[1645254730118,3.5987524,2818.1,2817.7,1.05824447]
[1645254730523,3.5987524,2818.1,2817.7,1.06067676]
[1645254731316,3.5987524,2818.1,2817.7,1.05824447]
[1645254731717,3.5987524,2818.1,2817.8,0.3]
[1645254736517,3.5987524,2818.1,2817.7,1.06067678]
[1645254737317,3.5987524,2818.1,2817.7,1.05824447]
[1645254737821,3.5987524,2818.1,2817.8,0.3]
[1645254738820,3.5987524,2818.1,2817.7,1.06067678]
[1645254739218,3.5987524,2818.1,2817.7,0.00243231]
[1645254739723,3.5987524,2818.1,2817.4,1.62]
[1645254739922,3.5987524,2818.1,2817.7,0.00243229]
[1645254740778,3.5987524,2818.1,2817.8,0.96811421]
[1645254741473,3.5987524,2818.1,2817.7,0.00243229]
[1645254742076,3.5987524,2818.1,2817.4,1.1]
[1645254742478,4.45770619,2818.1,2817.7,0.00243229]
[1645254743079,3.5987524,2818.1,2817.7,0.00243229]
[1645254743282,3.5987524,2818.1,2817.5,1.18965984]
[1645254743674,3.5987524,2818.1,2817.7,0.00243229]
[1645254744716,3.5987524,2818.1,2817.5,1.18965984]
[1645254744919,3.5987524,2818.1,2817.7,0.00243229]
[1645254745722,3.5987524,2818.1,2817.5,1.18965984]
[1645254746121,3.5987524,2818.1,2817.7,0.00243229]
[1645254746921,3.5987524,2818.1,2817.5,1.18965984]
[1645254747322,3.5987524,2818.1,2817.7,0.00243229]
[1645254748172,3.5987524,2818.1,2817.5,1.18965984]
[1645254748372,3.5987524,2818.1,2817.7,0.00243229]
[1645254749374,3.5987524,2818.1,2817.5,1.18965984]
[1645254749674,3.5987524,2818.1,2817.7,0.00243229]
[1645254750676,3.5987524,2818.1,2817.5,4.68965984]
[1645254750876,3.5987524,2818.1,2817.7,0.00243229]
[1645254751082,3.0987524,2818.1,2817.7,0.00243229]
[1645254751925,3.0987524,2818.1,2817.5,5.58622357]
[1645254752120,3.0987524,2818.1,2817.7,0.00243229]
[1645254753123,3.0987524,2818.1,2817.5,1.18965984]
[1645254753324,1.5062796,2818.0,2817.7,0.00243229]
[1645254753526,3.0987524,2818.1,2817.7,0.00243229]
[1645254753729,1.50628027,2818.0,2817.7,0.00243229]
[1645254754125,3.0987524,2818.1,2817.5,1.18965984]
[1645254754326,3.0987524,2818.1,2817.7,0.00243227]
[1645254755471,3.0987524,2818.1,2817.5,1.18965984]
[1645254755671,1.50627736,2818.0,2817.7,0.00243229]
[1645254756672,1.50627736,2818.0,2817.5,0.3]
[1645254756872,1.50627736,2818.0,2817.7,0.00243227]
[1645254757873,1.50627736,2818.0,2817.4,1.16105662]
[1645254758078,1.50627736,2818.0,2817.7,0.00243227]
[1645254759119,1.50627736,2818.0,2817.4,1.16105662]
[1645254759317,1.50627736,2818.0,2817.7,0.00243227]
[1645254760319,1.50627736,2818.0,2817.4,0.86105662]
[1645254760519,1.50627736,2818.0,2817.7,0.00243227]
[1645254761426,1.50627736,2818.0,2817.4,1.46105662]
[1645254761622,1.50627736,2818.0,2817.7,0.00243227]
[1645254762218,2.5348704,2818.0,2817.7,0.00243227]
[1645254762675,1.50627736,2817.9,2817.4,1.46105662]
[1645254762877,1.50627736,2817.9,2817.7,0.00243227]
[1645254763874,1.50627736,2817.9,2817.4,0.6]
[1645254764078,1.50627736,2817.9,2817.7,0.00243225]
[1645254764879,12.31627736,2817.9,2817.7,0.00243225]
[1645254765079,1.50627736,2817.8,2817.2,0.3]
[1645254765275,1.50627736,2817.8,2817.1,0.3]
[1645254765480,1.50627736,2817.8,2817.7,3.225e-05]
[1645254765481,13.31627736,2817.8,2817.7,3.225e-05]
[1645254765677,13.31627736,2817.8,2817.2,0.00973046]
[1645254765678,0.00076775,2817.5,2817.2,0.00973046]
[1645254765876,10.81,2817.4,2817.2,0.00973046]
[1645254766076,1.50627736,2817.3,2817.2,0.00973046]
[1645254766273,12.31627736,2817.3,2816.6,3.5]
[1645254766520,10.81,2817.3,2816.6,3.5]
[1645254766723,1.50673775,2817.2,2816.6,3.8]
[1645254766920,1.07971731,2817.1,2816.6,3.8]
[1645254767522,10.81,2817.3,2816.6,0.30419871]
[1645254767722,10.81,2817.3,2816.7,0.00419871]
[1645254767723,1.5067418,2817.2,2816.7,0.00419871]
[1645254768119,12.3167418,2817.2,2817.0,0.5]
[1645254768319,10.81,2817.2,2816.7,0.00419871]
[1645254768923,11.7721558,2817.2,2816.8,0.00242968]
[1645254769920,11.7721558,2817.2,2816.7,0.00419871]
[1645254770167,11.7721558,2817.2,2816.9,0.00242966]
[1645254770970,11.7721558,2817.2,2816.7,0.00419871]
[1645254771168,0.9621558,2817.2,2816.7,0.00419871]
[1645254771370,0.9621558,2817.2,2816.9,0.00242963]
[1645254771770,10.81,2817.4,2816.9,0.00242963]
[1645254771975,1.00076775,2817.5,2816.9,0.00242963]
[1645254772269,1.00076775,2817.5,2816.7,0.00419871]
[1645254772270,1.50671942,2817.4,2816.7,0.00419871]
[1645254772469,1.50748717,2817.5,2816.7,0.00419871]
[1645254772669,1.50748717,2817.5,2817.0,0.00242958]
[1645254773173,0.98061258,2817.3,2817.0,0.00242958]
[1645254773370,1.50748717,2817.5,2816.6,0.0097198]
[1645254773371,0.00076775,2817.5,2816.6,0.0097198]
[1645254773574,0.00076775,2817.5,2816.6,0.00419871]
[1645254773774,1.50747211,2817.5,2817.0,0.00242958]
[1645254774224,0.00076775,2817.5,2817.0,0.00242958]
[1645254774424,1.50744861,2817.5,2817.0,0.00242958]
[1645254774631,1.50744861,2817.5,2816.6,0.00419871]
[1645254775023,0.00076775,2817.5,2816.6,0.00419871]
[1645254775224,0.00076775,2817.5,2817.1,0.00242954]
[1645254775422,1.50747116,2817.5,2817.1,0.00242954]
[1645254775625,5.10747116,2817.5,2817.1,0.00242954]
[1645254775823,3.60076775,2817.5,2816.6,0.00419871]
[1645254776025,0.85186371,2817.4,2816.6,0.00419871]
[1645254776222,0.85186371,2817.4,2817.2,0.00242951]
[1645254777129,11.66186371,2817.4,2816.6,0.00419871]
[1645254777327,12.3167618,2817.3,2817.2,0.00242951]
[1645254778185,12.3167618,2817.3,2816.7,0.00971951]
[1645254778484,1.5067618,2817.2,2817.1,0.00136648]
[1645254778684,12.5857376,2817.3,2817.1,0.00136648]
[1645254779086,1.7757376,2817.3,2817.1,0.00136648]
[1645254779284,13.4736176,2817.3,2817.1,0.00136648]
[1645254779583,1.7757376,2817.3,2816.4,0.00419871]
[1645254779794,1.7758437,2817.1,2816.6,0.00546684]
[1645254779985,1.50687177,2817.0,2816.6,0.00546684]
[1645254780190,10.81,2816.9,2816.6,0.00546684]
[1645254780688,11.69806,2816.9,2816.4,0.00419871]
[1645254780985,12.5860829,2816.9,2816.6,0.00243253]
[1645254781622,13.4741429,2816.9,2816.6,0.00243253]
[1645254781822,13.4741429,2816.9,2816.4,0.00419871]
[1645254782020,13.4741429,2816.9,2816.6,0.00243253]
[1645254782222,2.6641429,2816.9,2816.6,0.00243253]
[1645254782422,13.4741429,2816.9,2816.6,0.00243253]
[1645254783021,13.4741429,2816.9,2816.3,0.00419871]
[1645254783222,13.4741429,2816.9,2816.6,0.00243253]
[1645254783823,13.4741429,2816.9,2816.6,0.00101131]
[1645254784226,13.4741429,2816.9,2816.3,0.00419871]
[1645254784723,2.6641429,2816.9,2816.3,0.00419871]
[1645254785774,3.2651,2817.1,2816.7,0.05464549]
[1645254787975,6.8651,2817.1,2816.7,0.05464549]
[1645254790129,7.75304,2817.1,2816.7,0.05464549]
[1645254790325,8.641,2817.1,2816.7,0.05464549]
[1645254790522,0.8879451,2817.0,2816.5,0.00243272]
[1645254791527,0.8879451,2817.0,2816.3,3.50419871]
[1645254791726,0.8879451,2817.0,2816.5,0.00243266]
[1645254792676,0.8879451,2817.0,2816.3,3.80419871]
[1645254792878,0.8879451,2817.0,2816.5,0.00243266]
[1645254793774,0.8879451,2817.0,2816.3,0.00419871]
[1645254793973,1.7759151,2817.0,2816.3,0.00419871]
[1645254794173,2.7759151,2817.0,2816.5,0.00243266]
[1645254794572,13.5859151,2817.0,2816.5,0.00243266]
[1645254794772,0.888,2816.9,2816.5,0.00243266]
[1645254794972,1.7760118,2816.9,2816.5,0.00243266]
[1645254795176,1.7760118,2816.9,2816.3,0.00419871]
[1645254795473,12.5860118,2816.9,2816.5,0.00243264]
[1645254795874,1.7760118,2816.9,2816.5,0.00243264]
[1645254796274,2.6640318,2816.9,2816.3,0.00419871]
[1645254796522,2.6640318,2816.9,2816.5,0.00243264]
[1645254796926,8.6409654,2817.1,2816.5,0.00243264]
[1645254797525,8.6409654,2817.1,2816.3,0.00419871]
[1645254797727,19.4509654,2817.1,2816.5,0.00243268]
[1645254798024,8.6409654,2817.1,2816.5,0.00243268]
[1645254798625,8.6409654,2817.1,2816.3,0.00419871]